bitfinex/quotes_ETHUSD_20251127
["timestamp","ask_amount","ask_price","bid_price","bid_amount"]
[1764213426267,0.002,3046.1,3046.0,8.21683138]
[1764213426465,0.002,3046.1,3046.0,8.42483138]
[1764213427192,0.002,3046.1,3046.0,10.80391084]
[1764213427380,0.002,3046.1,3046.0,8.42483138]
[1764213427580,0.002,3046.1,3046.0,10.80391084]
[1764213428987,0.1917,3048.3,3046.1,1.13109811]
[1764213429184,0.1917,3048.3,3046.0,33.72099911]
[1764213429185,2.47857874,3047.8,3046.6,2.37907946]
[1764213429485,2.47857874,3047.8,3046.8,2.37907946]
[1764213429486,0.09949928,3047.8,3046.8,2.37907946]
[1764213429689,0.4751,3047.7,3046.8,2.37907946]
[1764213429990,0.4751,3047.7,3046.8,2.63778741]
[1764213430376,0.4751,3047.7,3047.0,2.37907946]
[1764213431181,3.7562786,3047.7,3047.0,2.37907946]
[1764213431692,0.4949,3047.6,3047.0,2.37907946]
[1764213432192,0.4949,3047.6,3047.0,5.66098792]
[1764213432370,0.4949,3047.6,3047.0,6.25295751]
[1764213434180,0.4949,3047.6,3047.1,2.59729207]
[1764213434680,0.002,3047.7,3047.4,2.37907946]
[1764213434862,0.4949,3047.6,3047.2,2.59729207]
[1764213435066,0.4904,3047.3,3047.2,2.59729207]
[1764213435480,3.28326572,3047.7,3047.2,2.59729207]
[1764213435481,0.4949,3047.5,3047.2,2.59729207]
[1764213435776,0.4949,3047.5,3047.2,3.48230604]
[1764213436168,0.4904,3047.3,3047.2,3.48230604]
[1764213438780,0.9853,3047.3,3047.2,2.59729207]
[1764213440170,0.4904,3047.3,3047.2,2.59729207]
[1764213440372,0.002,3047.7,3047.3,2.10689207]
[1764213440672,0.4949,3047.6,3047.3,2.10689207]
[1764213440979,3.9842053,3047.6,3047.4,2.10689207]
[1764213441177,3.17028844,3047.5,3047.4,2.10689207]
[1764213441382,1.28610898,3047.5,3047.4,2.10689207]
[1764213441672,0.9853,3047.5,3047.4,2.10689207]
[1764213442081,3.36437946,3047.5,3047.4,2.10689207]
[1764213442290,3.66543544,3047.5,3047.4,2.10689207]
[1764213442575,1.28635598,3047.5,3047.4,2.10689207]
[1764213443000,5.29332826,3047.5,3047.4,2.10689207]
[1764213444198,0.9853,3047.5,3047.4,2.10689207]
[1764213445206,4.26667817,3047.5,3047.4,2.10689207]
[1764213445503,0.9853,3047.5,3047.4,2.10689207]
[1764213445673,4.26667817,3047.5,3047.4,2.10689207]
[1764213446898,3.49126304,3047.7,3046.9,2.10689207]
[1764213446899,0.002,3047.7,3046.9,2.10689207]
[1764213447073,0.4904,3047.5,3047.0,2.37907946]
[1764213447276,0.4904,3047.5,3047.1,0.77679959]
[1764213447476,0.9853,3047.5,3047.1,0.77679959]
[1764213449581,0.4904,3047.5,3047.1,4.05856274]
[1764213449780,0.002,3047.7,3047.1,4.05856274]
[1764213450011,3.5854822,3047.7,3047.1,0.77679959]
[1764213450186,0.30230608,3047.6,3047.2,0.64377564]
[1764213450388,0.30230608,3047.6,3047.2,3.38526771]
[1764213450592,0.002,3047.7,3047.4,2.37907946]
[1764213450813,0.002,3047.7,3047.2,5.76434717]
[1764213451401,0.4949,3047.6,3047.2,2.95866771]
[1764213451602,0.4949,3047.6,3047.2,2.75066771]
[1764213451788,0.3026158,3047.5,3047.2,2.75066771]
[1764213452178,0.4904,3047.3,3047.2,2.75066771]
[1764213453178,0.79336216,3047.3,3047.2,2.75066771]
[1764213455210,0.4949,3047.5,3047.4,1.31352991]
[1764213455706,0.8848,3047.5,3047.4,1.31352991]
[1764213457388,4.16617817,3047.5,3047.4,1.31352991]
[1764213459819,0.8848,3047.5,3047.4,1.31352991]
[1764213460019,4.16617817,3047.5,3047.4,1.31352991]
[1764213460310,5.19927156,3047.5,3047.4,1.31352991]
[1764213462712,0.09949928,3047.1,3047.0,0.001]
[1764213462912,5.79125231,3047.1,3047.0,0.001]
[1764213463102,6.67535231,3047.1,3047.0,0.001]
[1764213464119,4.89150304,3047.1,3047.0,0.001]
[1764213464416,5.09950304,3047.1,3047.0,0.001]
[1764213466790,4.89150304,3047.1,3047.0,0.001]
[1764213466992,4.63070304,3047.1,3047.0,0.001]
[1764213467196,4.93306384,3047.1,3047.0,0.001]
[1764213468391,5.40186384,3047.1,3047.0,0.001]
[1764213472615,5.19386384,3047.1,3047.0,0.001]
[1764213472805,5.40186384,3047.1,3047.0,0.001]
[1764213475423,5.19386384,3047.1,3047.0,0.001]
[1764213475723,5.40186384,3047.1,3047.0,0.001]
[1764213476517,5.50136312,3047.1,3047.0,0.001]
[1764213478727,5.40186384,3047.1,3047.0,0.001]
[1764213479595,5.50136312,3047.1,3047.0,0.001]
[1764213482329,5.50164886,3047.1,3047.0,0.001]
[1764213483505,8.04908717,3047.1,3047.0,0.001]
[1764213483829,5.40214958,3047.1,3047.0,0.001]
[1764213487229,8.04908717,3047.1,3047.0,0.001]
[1764213488614,5.50164886,3047.1,3047.0,0.001]
[1764213488816,4.93334958,3047.1,3047.0,0.001]
[1764213491236,4.72534958,3047.1,3047.0,0.4866]
[1764213491440,4.93334958,3047.1,3047.0,0.4866]
[1764213492334,4.93334958,3047.1,3047.0,0.9754]
[1764213492335,0.30264654,3047.1,3047.0,0.9754]
[1764213492715,0.30264654,3047.1,3047.0,1.65588437]
[1764213493612,0.30264654,3047.1,3047.0,4.937801]
[1764213494027,0.002,3047.3,3047.0,1.65588437]
[1764213494340,0.30317419,3047.2,3047.1,0.4888]
[1764213494834,0.002,3047.3,3047.1,1.17]
[1764213495030,0.002,3047.3,3047.2,0.99893785]
[1764213495228,0.002,3047.3,3047.2,1.48773785]
[1764213495430,0.002,3047.3,3047.2,4.76943908]
[1764213497160,0.002,3047.3,3047.2,1.48773785]
[1764213497342,0.002,3047.3,3047.2,4.76943908]
[1764213500441,0.002,3047.5,3047.2,5.17494308]
[1764213500626,0.002,3047.5,3047.4,4.16413642]
[1764213501027,0.002,3047.5,3047.4,4.65293642]
[1764213501238,0.002,3047.5,3047.4,8.14242227]
[1764213502029,0.002,3047.6,3047.5,0.72559411]
[1764213502237,0.002,3047.6,3047.5,3.02496811]
[1764213503146,0.002,3047.9,3047.8,3.68655918]
[1764213503446,0.002,3047.9,3047.8,7.20839749]
[1764213504355,0.002,3047.9,3047.8,8.1419916]
[1764213507040,0.002,3047.9,3047.8,8.27336117]
[1764213507326,0.002,3048.2,3048.0,1.30952991]
[1764213507527,0.002,3048.2,3048.0,12.68706791]
[1764213507749,0.002,3048.2,3048.0,5.386338]
[1764213509938,0.002,3048.2,3048.0,5.188834]
[1764213510227,0.002,3048.2,3048.0,6.40611211]
[1764213510748,0.002,3048.2,3048.0,6.81161611]
[1764213511150,0.002,3048.6,3048.1,1.13109811]
[1764213511357,0.185,3050.0,3048.6,0.405504]
[1764213511523,6.55587242,3050.7,3049.5,3.03303831]
[1764213511728,3.74948244,3050.2,3049.5,0.78890383]
[1764213512037,3.74948244,3050.2,3049.5,0.4856]
[1764213512235,0.471,3050.1,3049.5,0.4856]
[1764213512753,0.6141,3049.6,3049.2,0.002]
[1764213512925,0.4287,3049.3,3049.2,0.002]
[1764213513336,0.8997,3049.3,3049.2,0.002]
[1764213514449,0.6521,3049.6,3049.2,0.002]
[1764213514631,3.46022417,3049.6,3049.2,0.002]
[1764213514833,0.433,3049.3,3049.2,0.002]
[1764213516639,0.9036,3049.3,3049.2,0.002]
[1764213518459,0.433,3049.3,3049.2,0.002]
[1764213519256,0.4706,3049.5,3049.2,0.002]
[1764213519459,0.4334,3049.3,3049.2,0.002]
[1764213519960,0.4706,3049.5,3049.2,0.002]
[1764213520357,0.4334,3049.3,3049.2,0.002]
[1764213520944,0.8984,3049.3,3049.2,0.002]
[1764213521342,0.4334,3049.3,3049.2,0.002]
[1764213521542,0.8984,3049.3,3049.2,0.002]
[1764213521750,0.4334,3049.3,3049.2,0.002]
[1764213521939,3.74412422,3049.6,3049.2,0.4785]
[1764213522261,3.74412422,3049.6,3048.9,0.002]
[1764213522770,0.465,3049.5,3048.9,4.15434026]
[1764213522944,3.27893786,3049.8,3048.9,4.15434026]
[1764213523136,0.465,3049.7,3048.9,4.15434026]
[1764213523452,0.465,3049.7,3049.0,0.89133403]
[1764213523831,0.002,3049.3,3049.1,0.4759]
[1764213524236,0.002,3049.3,3049.2,0.4785]
[1764213525042,0.002,3049.3,3049.2,0.9544]
[1764213526140,0.002,3049.3,3049.2,0.4785]
[1764213526361,0.4409,3049.3,3048.9,0.002]
[1764213526569,0.002,3049.3,3049.2,0.4785]
[1764213527239,0.002,3049.3,3049.2,0.9544]
[1764213528346,0.002,3049.3,3049.2,4.23394873]
[1764213530069,0.002,3049.3,3049.2,4.63945273]
[1764213530439,0.002,3049.3,3049.2,4.94152715]
[1764213530640,0.002,3049.7,3049.3,0.405504]
[1764213530838,0.002,3049.7,3049.6,4.96901351]
[1764213531063,0.002,3049.7,3049.6,5.17701351]
[1764213531337,0.002,3049.7,3049.6,5.65491351]
[1764213531542,0.002,3049.7,3049.6,6.22040486]
[1764213531738,0.002,3049.7,3049.6,2.86098946]
[1764213531948,0.002,3049.7,3049.6,2.29549811]
[1764213532348,0.002,3049.7,3049.6,5.57461668]
[1764213533242,0.002,3049.7,3049.6,5.76391668]
[1764213535986,3.46704949,3050.9,3049.6,5.76391668]
[1764213535987,3.2752688,3053.2,3050.2,0.405504]
[1764213536273,0.30221833,3053.1,3051.9,0.405504]
[1764213536450,0.30221833,3053.0,3052.1,3.27643262]
[1764213536650,0.30221833,3052.9,3052.2,0.1606]
[1764213536856,0.30221833,3052.8,3052.2,0.1606]
[1764213537061,0.1893,3052.9,3052.2,1.6204824]
[1764213537369,0.1893,3052.9,3052.3,0.4896915]
[1764213537575,0.465,3053.3,3052.3,0.9655915]
[1764213537876,0.30140178,3053.2,3052.3,0.9655915]
[1764213538076,6.54685914,3054.9,3053.5,0.4785]
[1764213538254,0.30095623,3054.8,3053.1,0.4785]
[1764213538456,0.465,3053.8,3053.1,0.4785]
[1764213538773,0.465,3053.8,3053.5,0.002]
[1764213538974,1.19059411,3053.8,3053.5,0.002]
[1764213539176,0.4066,3053.6,3053.5,0.002]
[1764213539553,0.871,3053.6,3053.5,0.002]
[1764213540468,5.67671806,3053.6,3053.5,0.002]
[1764213540656,5.67671806,3053.6,3051.9,0.208]
[1764213540657,0.72559411,3053.5,3051.9,0.208]
[1764213540863,0.30029752,3053.4,3052.0,0.36453547]
[1764213541049,0.8647968,3053.4,3052.0,0.36453547]
[1764213541372,0.50808718,3053.3,3052.0,0.84043547]
[1764213541575,0.465,3053.3,3052.0,0.84043547]
[1764213541875,0.465,3053.4,3052.1,0.4759]
[1764213542197,0.465,3053.4,3052.0,0.36453547]
[1764213542674,0.72559411,3053.2,3052.1,3.27643262]
[1764213542979,0.72559411,3053.2,3052.0,4.11695535]
[1764213543275,0.465,3053.1,3052.1,0.73935998]
[1764213543978,0.5023,3052.1,3051.4,0.1864]
[1764213544152,0.1893,3052.0,3051.1,6.76301294]
[1764213544352,0.1893,3052.0,3051.9,0.002]
[1764213548778,0.6471,3052.4,3051.9,0.002]
[1764213548979,0.91929411,3052.8,3051.9,0.002]
[1764213549154,0.6471,3052.8,3052.0,7.78952991]
[1764213549459,0.6614,3053.1,3052.1,0.82736299]
[1764213549653,0.6614,3053.1,3052.2,7.78952991]
[1764213549882,0.4534,3053.1,3052.2,8.27232991]
[1764213550079,0.4534,3053.1,3052.3,0.4828]
[1764213550455,3.27525968,3053.2,3052.3,0.4828]
[1764213550656,3.48303766,3053.4,3052.4,0.82723299]
[1764213550866,7.20997532,3053.4,3052.5,1.30952991]
[1764213551061,1.17749411,3053.3,3052.5,1.30952991]
[1764213551256,0.6028,3052.6,3052.5,1.30952991]
[1764213551562,0.4073,3052.6,3052.5,1.30952991]
[1764213551961,0.1955,3052.8,3052.5,1.30952991]
[1764213552763,0.6474,3052.8,3052.5,1.30952991]
[1764213553963,0.4073,3052.6,3052.5,1.30952991]
[1764213555971,0.1955,3052.8,3052.5,1.30952991]
[1764213556158,0.1955,3052.8,3052.6,1.30952991]
[1764213556483,0.1955,3052.8,3052.7,1.30952991]
[1764213556687,6.74686268,3052.8,3052.4,1.30952991]
[1764213557065,0.4805,3052.5,3052.4,1.30952991]
[1764213557466,4.13550327,3052.5,3052.4,1.30952991]
[1764213557992,0.8595,3052.5,3052.4,1.30952991]
[1764213558408,0.4805,3052.5,3052.4,1.30952991]
[1764213558771,0.8595,3052.5,3052.4,1.30952991]
[1764213559499,0.4805,3052.5,3052.4,1.30952991]
[1764213560077,0.208,3052.7,3052.4,1.30952991]
[1764213560281,0.5096537,3052.7,3052.4,1.30952991]
[1764213561171,0.4805,3052.5,3052.4,1.30952991]
[1764213561372,0.208,3052.7,3052.4,1.30952991]
[1764213561596,0.30211953,3053.1,3052.6,0.4709]
[1764213561814,0.30211953,3053.0,3052.6,1.78042991]
[1764213562099,3.72693766,3053.4,3052.6,0.4709]
[1764213562307,0.30228481,3053.3,3052.6,1.30952991]
[1764213562608,0.30228481,3053.2,3052.6,2.25089278]
[1764213563105,0.30228481,3053.2,3052.7,1.30952991]
[1764213563277,0.30228481,3053.1,3052.7,4.58531567]
[1764213563477,0.6599,3053.3,3052.7,4.58531567]
[1764213563478,0.30228481,3053.0,3052.7,1.30952991]
[1764213563685,0.6599,3053.3,3052.7,1.30952991]
[1764213563907,0.6599,3053.3,3052.7,4.58529888]
[1764213563908,0.30254319,3053.2,3052.7,4.58529888]
[1764213564091,0.30254319,3053.1,3052.7,4.58530796]
[1764213564290,0.30254319,3053.0,3052.7,5.41971777]
[1764213564490,0.30254319,3052.9,3052.7,5.41971777]
[1764213564787,0.4519,3053.2,3052.7,2.14393972]
[1764213564987,0.30282808,3053.1,3052.7,1.30952991]
[1764213565188,0.30282808,3053.0,3052.7,1.30952991]
[1764213565391,0.30282808,3052.9,3052.7,1.30952991]
[1764213565574,0.30282808,3052.8,3052.7,4.58531855]
[1764213565773,0.30282808,3052.8,3052.7,3.27578864]
[1764213566003,0.1975,3053.5,3052.7,1.32955886]
[1764213566203,0.1975,3053.5,3053.0,0.4709]
[1764213566204,0.30321983,3053.4,3053.0,0.4709]
[1764213566409,0.30321983,3053.3,3052.7,0.37585886]
[1764213566702,0.30321983,3053.2,3052.7,0.37585886]
[1764213566900,0.30321983,3053.1,3052.8,0.69276185]
[1764213567103,0.4519,3053.4,3052.8,0.69276185]
[1764213567104,0.30321983,3053.0,3052.8,0.69276185]
[1764213567303,0.4519,3053.4,3052.8,0.69276185]
[1764213567507,0.30307218,3053.3,3052.9,3.27557404]
[1764213567707,0.4073,3052.9,3052.8,3.27564163]
[1764213567874,0.4514,3053.3,3052.8,3.27564163]
[1764213568075,0.30317288,3053.2,3052.8,3.27564163]
[1764213568287,0.30317288,3053.1,3052.8,7.20646449]
[1764213568467,0.30317288,3053.0,3052.8,7.20646449]
[1764213568670,0.4514,3053.3,3052.8,7.68926449]
[1764213568892,0.30318939,3053.2,3052.9,0.4709]
[1764213569201,0.30318939,3053.1,3052.9,1.23864506]
[1764213569398,0.4078,3053.0,3052.9,0.76774506]
[1764213569601,0.4514,3053.3,3052.8,3.27568028]
[1764213569796,0.3032535,3053.2,3052.9,0.9537]
[1764213569992,0.3032535,3053.1,3052.9,0.9537]
[1764213570199,0.208,3053.4,3053.0,1.23330616]
[1764213570404,0.3032575,3053.3,3053.0,1.70420616]
[1764213570576,0.4073,3053.1,3052.2,0.4828]
[1764213570777,0.4033,3052.2,3051.9,0.001]
[1764213571073,0.4033,3052.2,3051.9,6.55425045]
[1764213571289,0.0081,3052.0,3051.9,0.001]
[1764213571499,0.31125499,3052.0,3051.9,0.001]
[1764213571676,0.76315499,3052.0,3051.9,0.001]
[1764213578410,0.31125499,3052.0,3051.9,0.001]
[1764213578909,0.30315499,3052.0,3051.9,0.9547]
[1764213579106,0.71045499,3052.0,3051.9,0.001]
[1764213579309,1.16185499,3052.0,3051.9,0.001]
[1764213580096,4.43839496,3052.0,3051.9,0.001]
[1764213580502,1.16185499,3052.0,3051.9,0.001]
[1764213581009,4.43839496,3052.0,3051.9,0.001]
[1764213582111,5.16398907,3052.0,3051.9,0.001]
[1764213582999,0.91845499,3052.0,3051.9,0.001]
[1764213583407,0.91849545,3052.0,3051.9,0.001]
[1764213583608,4.19503542,3052.0,3051.9,0.001]
[1764213583811,4.43843542,3052.0,3051.9,0.001]
[1764213583986,4.64643542,3052.0,3051.9,0.001]
[1764213589115,4.43843542,3052.0,3051.9,0.001]
[1764213589316,4.64643542,3052.0,3051.9,0.001]
[1764213590715,8.63793442,3052.0,3051.9,0.001]
[1764213591507,5.47152881,3052.0,3051.9,0.001]
[1764213594020,9.04343842,3052.0,3051.9,0.001]
[1764213596525,5.87703281,3052.0,3051.9,0.001]
[1764213596902,5.77753353,3052.0,3051.9,0.001]
[1764213597226,5.87703281,3052.0,3051.9,0.001]
[1764213598012,5.66903281,3052.0,3051.9,0.001]
[1764213598229,5.87703281,3052.0,3051.9,0.001]
[1764213598804,5.16402953,3052.0,3051.9,0.001]
[1764213599027,4.92062953,3052.0,3051.9,0.001]
[1764213599703,5.37202953,3052.0,3051.9,0.001]
[1764213600328,5.37202953,3052.0,3051.9,0.5001]
[1764213600329,3.57973542,3052.0,3051.9,0.5001]
[1764213600642,3.78773542,3052.0,3051.9,0.5001]
[1764213601708,0.51119545,3052.0,3051.9,0.5001]
[1764213601923,3.78773542,3052.0,3051.9,0.5001]
[1764213602129,0.51119545,3052.0,3051.9,0.5001]
[1764213602631,3.78773542,3052.0,3051.9,0.5001]
[1764213603229,3.78773542,3052.0,3051.9,0.001]
[1764213603537,0.51119545,3052.0,3051.9,0.5001]
[1764213603921,0.30319545,3052.0,3051.9,0.5001]
[1764213604325,0.30319545,3052.0,3051.9,0.9971]
[1764213605213,0.30319545,3052.0,3051.9,0.001]
[1764213605520,0.70589545,3052.0,3051.9,0.001]
[1764213606013,0.30319545,3052.0,3051.9,0.5001]
[1764213606333,0.30319545,3052.0,3051.9,0.9971]
[1764213607106,3.08974476,3052.1,3051.9,0.9971]
[1764213607311,3.81533887,3052.1,3052.0,0.4991]
[1764213608233,4.21803887,3052.1,3051.9,0.001]
[1764213608438,3.81533887,3052.1,3051.9,0.001]
[1764213608634,0.4033,3052.0,3051.9,0.001]
[1764213608939,3.81533887,3052.1,3051.9,0.001]
[1764213609135,0.4033,3052.0,3051.9,0.001]
[1764213609325,1.0765,3052.0,3051.9,0.001]
[1764213609510,1.0765,3052.0,3051.9,1.31052991]
[1764213609718,0.208,3052.0,3051.9,2.26972991]
[1764213609936,0.208,3052.0,3051.9,2.0084029]
[1764213610122,0.208,3052.0,3051.9,2.4833029]
[1764213611521,3.98413997,3052.0,3051.9,1.5375029]
[1764213611838,4.35403997,3052.0,3051.9,1.31052991]
[1764213612224,3.98413997,3052.0,3051.9,1.31052991]
[1764213614039,3.48453997,3052.0,3051.9,1.79722991]
[1764213614642,0.002,3052.1,3051.9,1.79722991]
[1764213614813,0.002,3052.1,3052.0,0.4867]
[1764213615019,0.002,3052.1,3052.0,1.18881299]
[1764213615213,0.21,3052.1,3052.0,1.18881299]
[1764213615415,0.21,3052.1,3052.0,2.4983429]
[1764213616415,0.21,3052.1,3052.0,2.0234429]
[1764213616620,3.89783262,3052.1,3052.0,1.5367429]
[1764213616819,3.89783262,3052.1,3052.0,1.30952991]
[1764213617034,3.89783262,3052.1,3052.0,1.79622991]
[1764213617035,0.21,3052.1,3052.0,1.79622991]
[1764213617225,0.21,3052.1,3052.0,2.27112991]
[1764213617844,0.002,3052.1,3052.0,2.27112991]
[1764213618150,3.48602066,3052.5,3052.1,1.30752991]
[1764213618318,0.21,3052.5,3052.4,0.4867]
[1764213619229,0.51385476,3052.5,3052.4,0.4867]
[1764213619822,0.51385476,3052.5,3052.4,2.26912991]
[1764213620244,0.21,3052.5,3052.4,2.26912991]
[1764213620437,0.51385476,3052.5,3052.4,2.26912991]
[1764213620642,4.35180327,3052.5,3052.4,1.30752991]
[1764213620827,4.65565803,3052.5,3052.4,1.30752991]
[1764213621150,0.51385476,3052.5,3052.4,1.79422991]
[1764213621350,0.51385476,3052.5,3052.4,1.9963442]
[1764213622249,0.30585476,3052.5,3052.4,1.9963442]
[1764213622549,0.21,3052.5,3052.4,2.4712442]
[1764213623050,4.65565803,3052.5,3052.4,1.5096442]
[1764213623254,4.19855803,3052.5,3052.4,1.30752991]
[1764213624522,0.30585476,3052.5,3052.4,0.4867]
[1764213624778,0.002,3052.5,3052.4,5.54524051]
[1764213627253,0.002,3052.5,3052.4,6.15874451]
[1764213630155,0.002,3053.5,3053.0,1.30552991]
[1764213630457,0.002,3053.5,3053.4,0.4867]
[1764213631733,0.875,3053.5,3053.1,1.30552991]
[1764213632065,0.002,3053.5,3053.4,0.4867]
[1764213632432,0.002,3053.5,3053.4,0.9616]
[1764213632632,0.002,3053.5,3053.1,3.41196198]
[1764213632633,0.002,3053.5,3053.1,3.88686198]
[1764213632959,0.002,3053.5,3053.4,0.4867]
[1764213633361,0.5004,3053.5,3053.1,0.1367]
[1764213633532,0.002,3053.5,3053.4,0.4867]
[1764213633733,0.002,3053.5,3053.1,3.88694038]
[1764213633938,0.002,3053.5,3053.2,0.38869404]
[1764213634265,0.4167,3053.2,3052.2,0.1946]
[1764213634562,0.51099353,3053.1,3052.2,0.1946]
[1764213634859,0.30294025,3053.0,3052.2,0.1946]
[1764213635066,0.30292464,3052.9,3052.0,0.001]
[1764213635233,0.49132464,3052.9,3052.0,0.001]
[1764213635438,0.94892464,3052.9,3052.1,0.1367]
[1764213635641,0.30292464,3052.8,3052.1,0.1367]
[1764213636162,0.208,3052.8,3052.1,3.41305567]
[1764213636362,0.208,3052.8,3052.2,0.34140557]
[1764213636540,0.5109779,3052.8,3052.2,0.34140557]
[1764213636740,0.3029779,3052.8,3052.2,0.81630557]
[1764213636954,0.1884,3052.9,3052.2,0.81630557]
[1764213637155,0.94895312,3052.9,3052.3,0.75057939]
[1764213637355,0.30295312,3052.8,3052.3,0.75057939]
[1764213637545,1.02854723,3052.8,3052.3,0.75057939]
[1764213637751,1.18319411,3052.8,3052.1,3.41305567]
[1764213637962,0.4576,3052.8,3052.1,3.88795567]
[1764213638165,0.4576,3052.8,3052.3,3.27621793]
[1764213638367,3.73329703,3052.8,3052.2,0.4749]
[1764213638555,0.4576,3052.8,3052.2,0.86379557]
[1764213638761,3.73330953,3052.8,3052.2,0.38889557]
[1764213638958,0.208,3052.8,3052.2,4.14011571]
[1764213639664,0.208,3052.8,3052.2,7.41644098]
[1764213639974,0.208,3052.8,3052.3,0.4768]
[1764213640145,0.208,3053.2,3052.7,0.467]
[1764213640467,0.208,3053.2,3052.8,0.467]
[1764213640667,0.208,3053.2,3052.7,3.27572574]
[1764213640977,0.51114966,3053.4,3053.1,0.467]
[1764213641353,0.208,3053.4,3053.1,0.467]
[1764213642044,0.30517449,3053.5,3053.1,0.467]
[1764213642249,0.30517449,3053.5,3053.1,0.1839]
[1764213642545,0.002,3053.5,3053.1,0.52984561]
[1764213642977,0.002,3053.5,3053.1,0.34594561]
[1764213643183,0.4794,3053.5,3053.1,0.34594561]
[1764213643350,0.6874,3053.5,3053.1,0.34594561]
[1764213643680,3.96233766,3053.5,3053.1,0.34594561]
[1764213643885,0.409,3053.2,3052.8,3.27564165]
[1764213644171,3.48493766,3053.5,3053.4,0.467]
[1764213644172,0.002,3053.5,3053.4,0.467]
[1764213644376,0.002,3053.5,3052.8,3.27564165]
[1764213644377,0.002,3053.5,3053.1,0.1839]
[1764213644748,0.409,3053.2,3052.7,3.27574893]
[1764213644943,3.75434003,3053.5,3052.8,0.32757489]
[1764213645187,0.002,3053.5,3053.4,0.467]
[1764213645349,0.002,3053.5,3052.8,0.80437489]
[1764213645689,0.002,3053.5,3052.8,0.32757489]
[1764213645982,0.002,3053.5,3052.9,2.04112116]
[1764213646291,0.3053588,3053.5,3052.9,5.31667203]
[1764213646784,4.05769023,3053.5,3052.9,0.73559125]
[1764213647085,0.409,3053.0,3052.8,1.6331048]
[1764213647446,0.208,3053.3,3052.8,1.6331048]
[1764213647643,0.9887765,3053.3,3052.8,4.90878538]
[1764213647976,0.208,3053.3,3052.9,0.49087854]
[1764213648789,0.208,3053.3,3052.9,3.76642998]
[1764213648970,0.208,3053.3,3052.9,4.24322998]
[1764213649162,0.30327474,3053.4,3052.9,3.76642998]
[1764213649357,0.208,3053.3,3053.0,0.4768]
[1764213649683,0.21,3053.5,3053.2,0.467]
[1764213649880,0.002,3053.3,3053.2,0.467]
[1764213651096,0.002,3053.3,3053.2,1.77252991]
[1764213654380,0.8877,3053.3,3053.2,1.30552991]
[1764213654717,0.71477577,3053.3,3053.2,1.30552991]
[1764213655087,0.002,3053.3,3053.2,1.77252991]
[1764213655279,0.002,3053.3,3053.2,1.9497829]
[1764213657904,0.4117,3053.3,3053.2,1.4827829]
[1764213658102,1.19133243,3053.3,3053.2,1.30552991]
[1764213658305,0.30563243,3053.3,3053.2,1.30552991]
[1764213658505,0.30563243,3053.3,3053.2,1.77252991]
[1764213658700,0.002,3053.3,3053.2,1.77252991]
[1764213660811,0.002,3053.3,3053.2,1.30552991]
[1764213660812,0.411,3053.3,3053.2,1.30552991]
[1764213661013,0.71463243,3053.3,3053.2,1.30552991]
[1764213662784,1.19157888,3053.3,3053.2,1.30552991]
[1764213663017,0.71490937,3053.3,3053.2,1.30552991]
[1764213663198,0.411,3053.3,3053.2,1.30552991]
[1764213664908,0.7150628,3053.3,3053.2,1.30552991]
[1764213665210,0.7150628,3053.3,3053.2,1.7636294]
[1764213665413,0.30615053,3053.3,3053.2,2.2306294]
[1764213665613,0.002,3053.3,3053.2,2.2306294]
[1764213665913,0.71515053,3053.3,3053.2,1.7636294]
[1764213666220,1.19185053,3053.3,3053.2,1.30552991]
[1764213668635,4.46699545,3053.3,3053.2,1.30552991]
[1764213669307,1.19185053,3053.3,3053.2,1.30552991]
[1764213670023,0.71515053,3053.3,3053.2,1.30552991]
[1764213670321,0.30615053,3053.3,3053.2,1.79432991]
[1764213670523,0.51415053,3053.3,3053.2,1.9737629]
[1764213670720,0.30615053,3053.3,3053.2,1.9737629]
[1764213670920,0.30615053,3053.3,3053.2,2.4370629]
[1764213671529,0.30615053,3053.3,3053.2,1.9737629]
[1764213671723,0.30615053,3053.3,3053.2,5.24901509]
[1764213671911,0.30615053,3053.3,3053.2,1.9737629]
[1764213672224,0.70355053,3053.3,3053.2,1.4849629]
[1764213672624,1.19175053,3053.3,3053.2,1.30552991]
[1764213674110,0.70355053,3053.3,3053.2,1.30552991]
[1764213674922,0.30615053,3053.3,3053.2,1.79432991]
[1764213675736,0.51415053,3053.3,3053.2,1.79432991]
[1764213676701,0.51415053,3053.3,3053.2,0.4888]
[1764213676902,0.30615053,3053.3,3053.2,0.86520548]
[1764213677101,0.51415053,3053.3,3053.2,0.86520548]
[1764213677302,0.30615053,3053.3,3053.2,4.14045767]
[1764213677526,0.30615053,3053.3,3053.2,4.60375767]
[1764213679329,0.30615053,3053.3,3053.2,1.32850548]
[1764213679506,0.30615053,3053.3,3053.2,4.14045767]
[1764213680226,0.30615053,3053.3,3053.2,0.86520548]
[1764213680817,0.30615053,3053.3,3053.2,4.14045767]
[1764213681725,0.30615053,3053.3,3053.2,0.86520548]
[1764213681932,0.30615053,3053.3,3053.2,4.14045767]
[1764213682310,0.30615053,3053.3,3053.2,4.60375767]
[1764213683235,0.77145053,3053.3,3053.2,3.65165767]
[1764213684034,0.77145053,3053.3,3053.2,4.14045767]
[1764213684035,0.30615053,3053.3,3053.2,4.14045767]
[1764213684630,0.77095053,3053.3,3053.2,0.37640548]
[1764213684935,0.77095053,3053.3,3053.0,3.27537833]
[1764213685106,0.30415053,3053.2,3053.0,3.27537833]
[1764213685309,0.3974,3053.1,3053.0,3.27537833]
[1764213685634,0.3974,3053.1,3052.7,5.64304965]
[1764213685841,0.30500756,3053.0,3052.5,2.36829837]
[1764213686141,0.30500756,3052.9,3052.6,0.23682984]
[1764213686311,0.30500756,3052.8,3052.6,0.23682984]
[1764213686511,0.4891,3053.1,3052.6,0.23682984]
[1764213686826,0.30502137,3053.0,3052.6,0.23682984]
[1764213687027,0.30502137,3052.9,3052.7,0.91571069]
[1764213687230,0.30502137,3052.8,3052.7,0.91571069]
[1764213687412,0.70242137,3052.8,3052.7,0.91571069]
[1764213687814,0.70242137,3052.8,3052.7,4.19149933]
[1764213688012,0.30502137,3052.8,3052.7,4.19149933]